[Event "Polish Youth G18 Championship 2023"]
[Site "Jastrzebia Gora"]
[Date "2023.03.14"]
[Round "4.6"]
[White "Nowak, Roksana"]
[Black "Mroz, Lena"]
[Result "1/2-1/2"]
[ECO "B28"]
[WhiteElo "1816"]
[BlackElo "1635"]
[Annotator "NA RC COMBH"]
[PlyCount "72"]
[EventDate "2023.03.11"]
[EventType "swiss"]
[EventCountry "POL"]
[SourceTitle "playchess.com"]
[Source "ChessBase"]
[SourceQuality "1"]
[TimeControl "40/5400+30:1800+30"]

1. e4 {[%emt 0:00:03]} c5 {[%emt 0:00:08]} 2. Nf3 {[%emt 0:00:07]} a6 {[%emt 0:00:06]} 3. c4 {[%emt 0:00:17]} Nc6 {[%emt 0:00:10]} 4. Nc3 {[%emt 0:01:06]} e5 {[%emt 0:01:14]} 5. d3 {[%emt 0:03:27]} d6 {[%emt 0:01:37]} 6. Be3 {[%emt 0:06:25]} g6 {[%emt 0:01:13]} 7. g3 {[%emt 0:02:56]} Bg7 {[%emt 0:01:04]} 8. Bg2 {[%emt 0:00:16]} Nge7 {[%emt 0:01:08]} 9. Qd2 {[%emt 0:04:40]} O-O {[%emt 0:12:58]} 10. Bh6 {[%emt 0:09:30]} Nd4 {[%emt 0:12:22]} 11. Nxd4 {[%emt 0:03:31]} exd4 {[%emt 0:00:53]} 12. Ne2 {[%emt 0:05:55]} Nc6 {[%emt 0:07:45]} 13. Bxg7 {[%emt 0:03:34]} Kxg7 {[%emt 0:00:09]} 14. f4 {[%emt 0:02:48]} Qa5 {[%emt 0:13:38]} 15. Qxa5 {[%emt 0:05:10]} Nxa5 {[%emt 0:00:06]} 16. Kd2 {[%emt 0:00:24]} Bd7 {[%emt 0:04:24]} 17. Rhe1 {[%emt 0:03:25]} Rae8 {[%emt 0:05:55]} 18. b3 {[%emt 0:07:27]} Re7 {[%emt 0:03:19]} 19. Rab1 {[%emt 0:02:58]} Nc6 {[%emt 0:02:23]} 20. Ng1 {[%emt 0:07:22]} Rfe8 {[%emt 0:02:25]} 21. Nf3 {[%emt 0:05:01]} a5 {[%emt 0:03:19]} 22. a3 {[%emt 0:04:37]} Bg4 {[%emt 0:03:38]} 23. Nh4 {[%emt 0:00:58]} f6 {[%emt 0:02:22]} 24. h3 {[%emt 0:02:10]} Bd7 {[%emt 0:00:27]} 25. g4 {[%emt 0:01:24]} Ra8 {[%emt 0:11:18]} 26. a4 {[%emt 0:01:16]} Rae8 {[%emt 0:01:30]} 27. Rg1 {[%emt 0:04:56]} Nd8 {[%emt 0:02:41]} 28. f5 {[%emt 0:02:51]} g5 {[%emt 0:01:10]} 29. Nf3 {[%emt 0:00:07]} h6 {[%emt 0:00:28]} 30. Rbf1 {[%emt 0:04:03]} Rf7 {[%emt 0:02:08]} 31. Rh1 {[%emt 0:01:31]} Rh8 {[%emt 0:00:45]} 32. h4 {[%emt 0:02:20]} Rff8 {[%emt 0:00:59]} 33. Ng1 {[%emt 0:01:00]} Bc6 {[%emt 0:00:50]} 34. Rh2 {[%emt 0:01:06]} Nf7 {[%emt 0:00:53]} 35. Nf3 {[%emt 0:01:01]} Ne5 {[%emt 0:00:50]} 36. Nxe5 {[%emt 0:00:52]} dxe5 {[%emt 0:00:05]} 1/2-1/2

[Event "Polish Youth G18 Championship 2023"]
[Site "Jastrzebia Gora"]
[Date "2023.03.14"]
[Round "4.7"]
[White "Kucharska, Helena"]
[Black "Gaczol, Julia"]
[Result "1-0"]
[ECO "B23"]
[WhiteElo "1779"]
[BlackElo "1419"]
[Annotator "NA RC COMBH"]
[PlyCount "63"]
[EventDate "2023.03.11"]
[EventType "swiss"]
[EventCountry "POL"]
[SourceTitle "playchess.com"]
[Source "ChessBase"]
[SourceQuality "1"]
[TimeControl "40/5400+30:1800+30"]

1. e4 {[%emt 0:00:39]} c5 {[%emt 0:00:13]} 2. Nc3 {[%emt 0:00:39]} a6 {[%emt 0:00:09]} 3. a4 {[%emt 0:01:46]} b6 {[%emt 0:01:21]} 4. Bc4 {[%emt 0:06:24]} Bb7 {[%emt 0:03:40]} 5. d3 {[%emt 0:05:04]} e6 {[%emt 0:05:51]} 6. Qe2 {[%emt 0:06:00]} Be7 {[%emt 0:06:40]} 7. Ba2 {[%emt 0:01:33]} Nc6 {[%emt 0:04:23]} 8. f4 {[%emt 0:04:37]} d6 {[%emt 0:06:10]} 9. Nf3 {[%emt 0:01:02]} Qc7 {[%emt 0:04:22]} 10. Be3 {[%emt 0:05:51]} Nb4 {[%emt 0:02:27]} 11. Bb3 {[%emt 0:02:44]} d5 {[%emt 0:04:34]} 12. exd5 {[%emt 0:06:25]} exd5 {[%emt 0:02:38]} 13. d4 {[%emt 0:00:42]} Nf6 {[%emt 0:02:13]} 14. a5 {[%emt 0:04:29]} c4 {[%emt 0:10:30]} 15. axb6 {[%emt 0:01:07]} Qxb6 {[%emt 0:00:31]} 16. Ba4+ {[%emt 0:00:18]} Bc6 {[%emt 0:01:25]} 17. O-O {[%emt 0:01:26]} Bxa4 {[%emt 0:05:50]} 18. Nxa4 {[%emt 0:01:33]} Qe6 {[%emt 0:01:55]} 19. Ne5 {[%emt 0:13:41]} Qf5 {[%emt 0:09:29]} 20. Rac1 {[%emt 0:01:11]} Qe6 {[%emt 0:11:40]} 21. b3 {[%emt 0:02:01]} Rc8 {[%emt 0:01:50]} 22. f5 {[%emt 0:03:06]} Qd6 {[%emt 0:00:22]} 23. Bf4 {[%emt 0:01:37]} Qd8 {[%emt 0:05:00]} 24. c3 {[%emt 0:06:41]} Nd3 {[%emt 0:04:55]} 25. Nxd3 {[%emt 0:00:29]} cxd3 {[%emt 0:00:20]} 26. Qxd3 {[%emt 0:00:14]} a5 {[%emt 0:02:52]} 27. Qb5+ {[%emt 0:00:32]} Kf8 {[%emt 0:01:03]} 28. Nb6 {[%emt 0:00:26]} Rb8 {[%emt 0:01:07]} 29. Bxb8 {[%emt 0:00:16]} Qxb8 {[%emt 0:00:03]} 30. c4 {[%emt 0:01:38]} dxc4 {[%emt 0:01:11]} 31. Rxc4 {[%emt 0:00:15]} Qb7 {[%emt 0:00:43]} 32. Rc8+ {[%emt 0:00:18]} 1-0

[Event "Polish Youth G18 Championship 2023"]
[Site "Jastrzebia Gora"]
[Date "2023.03.14"]
[Round "4.8"]
[White "Czerwinska, Oliwia"]
[Black "Lukasik, Zuzanna"]
[Result "0-1"]
[ECO "B30"]
[WhiteElo "1369"]
[BlackElo "1781"]
[Annotator "NA RC COMBH"]
[PlyCount "106"]
[EventDate "2023.03.11"]
[EventType "swiss"]
[EventCountry "POL"]
[SourceTitle "playchess.com"]
[Source "ChessBase"]
[SourceQuality "1"]
[TimeControl "40/5400+30:1800+30"]

1. e4 {[%emt 0:00:03]} c5 {[%emt 0:01:11]} 2. Nf3 {[%emt 0:00:21]} Nc6 {[%emt 0:01:02]} 3. c3 {[%emt 0:00:31]} Nf6 {[%emt 0:00:47]} 4. e5 {[%emt 0:01:11]} Nd5 {[%emt 0:01:01]} 5. Bc4 {[%emt 0:02:19]} Nb6 {[%emt 0:03:50]} 6. Bb3 {[%emt 0:00:33]} e6 {[%emt 0:02:41]} 7. O-O {[%emt 0:01:58]} d5 {[%emt 0:02:28]} 8. d4 {[%emt 0:01:00]} Bd7 {[%emt 0:06:24]} 9. Be3 {[%emt 0:04:57]} cxd4 {[%emt 0:04:20]} 10. cxd4 {[%emt 0:00:47]} Be7 {[%emt 0:07:20]} 11. Nc3 {[%emt 0:02:05]} O-O {[%emt 0:04:15]} 12. Rc1 {[%emt 0:09:35]} Na5 {[%emt 0:02:54]} 13. Bc2 {[%emt 0:03:26]} g6 {[%emt 0:02:00]} 14. Bd3 {[%emt 0:07:30]} a6 {[%emt 0:03:15]} 15. Qe2 {[%emt 0:01:50]} Rc8 {[%emt 0:04:28]} 16. Nb1 {[%emt 0:02:07]} Nbc4 {[%emt 0:06:04]} 17. b3 {[%emt 0:02:24]} Nxe3 {[%emt 0:01:12]} 18. fxe3 {[%emt 0:04:55]} Nc6 {[%emt 0:03:21]} 19. a3 {[%emt 0:04:41]} Qb6 {[%emt 0:05:17]} 20. b4 {[%emt 0:05:59]} Na7 21. Nc3 f5 {[%emt 0:06:04]} 22. Qb2 {[%emt 0:09:43]} Qd8 {[%emt 0:11:03]} 23. Ne2 {[%emt 0:03:54]} Qe8 {[%emt 0:01:47]} 24. Rxc8 {[%emt 0:01:56]} Nxc8 {[%emt 0:00:20]} 25. Nc3 {[%emt 0:01:25]} Nb6 {[%emt 0:01:13]} 26. Qb3 {[%emt 0:05:01]} Bb5 {[%emt 0:09:57]} 27. Nxb5 {[%emt 0:11:05]} axb5 {[%emt 0:00:09]} 28. Nd2 {[%emt 0:01:37]} Qc6 {[%emt 0:02:07]} 29. Qc2 {[%emt 0:03:38]} Bg5 {[%emt 0:02:30]} 30. Re1 {[%emt 0:03:24]} Qxc2 {[%emt 0:02:25]} 31. Bxc2 {[%emt 0:00:07]} Rc8 {[%emt 0:00:08]} 32. Bb3 {[%emt 0:00:33]} Rc3 {[%emt 0:01:39]} 33. Kf2 h6 {[%emt 0:01:33]} 34. g3 {[%emt 0:01:29]} Rd3 {[%emt 0:01:22]} 35. Rd1 {[%emt 0:03:25]} Bxe3+ {[%emt 0:01:14]} 36. Ke2 {[%emt 0:00:06]} Rc3 {[%emt 0:00:36]} 37. Nf1 {[%emt 0:01:09]} Rxb3 {[%emt 0:00:30]} 38. Nxe3 {[%emt 0:00:09]} Rxa3 {[%emt 0:00:18]} 39. Rd2 {[%emt 0:00:38]} Rxe3+ {[%emt 0:00:37]} 40. Kxe3 {[%emt 0:00:00]} Nc4+ {[%emt 0:00:00]} 41. Kd3 {[%emt 0:00:19]} Nxd2 {[%emt 0:00:12]} 42. Kxd2 {[%emt 0:00:06]} g5 {[%emt 0:00:26]} 43. Ke3 {[%emt 0:00:17]} Kg7 {[%emt 0:00:39]} 44. h3 {[%emt 0:00:36]} Kg6 {[%emt 0:00:43]} 45. Kf3 {[%emt 0:01:26]} Kh5 {[%emt 0:03:42]} 46. Kg2 {[%emt 0:02:29]} f4 {[%emt 0:03:02]} 47. Kf3 {[%emt 0:01:12]} fxg3 {[%emt 0:00:21]} 48. Kxg3 {[%emt 0:00:07]} Kg6 {[%emt 0:00:06]} 49. Kg4 {[%emt 0:00:37]} h5+ {[%emt 0:00:43]} 50. Kg3 {[%emt 0:00:06]} Kf5 {[%emt 0:00:20]} 51. Kf3 {[%emt 0:00:19]} g4+ {[%emt 0:00:51]} 52. hxg4+ {[%emt 0:00:05]} hxg4+ {[%emt 0:00:07]} 53. Kg3 {[%emt 0:00:06]} Kg5 {[%emt 0:00:13]} 0-1

[Event "Polish Youth G18 Championship 2023"]
[Site "Jastrzebia Gora"]
[Date "2023.03.14"]
[Round "4.9"]
[White "Szczotka, Matylda"]
[Black "Krzyzosiak, Marta"]
[Result "1/2-1/2"]
[ECO "B72"]
[WhiteElo "1451"]
[BlackElo "1778"]
[Annotator "NA RC COMBH"]
[PlyCount "62"]
[EventDate "2023.03.11"]
[EventType "swiss"]
[EventCountry "POL"]
[SourceTitle "playchess.com"]
[Source "ChessBase"]
[SourceQuality "1"]
[TimeControl "40/5400+30:1800+30"]

1. e4 {[%emt 0:00:02]} c5 {[%emt 0:00:05]} 2. Nf3 {[%emt 0:00:06]} d6 {[%emt 0:00:04]} 3. d4 {[%emt 0:00:04]} cxd4 {[%emt 0:00:04]} 4. Nxd4 {[%emt 0:00:03]} Nf6 {[%emt 0:00:07]} 5. Nc3 {[%emt 0:00:12]} g6 {[%emt 0:00:08]} 6. Be3 {[%emt 0:00:20]} Bg7 {[%emt 0:00:11]} 7. Be2 {[%emt 0:00:41]} O-O {[%emt 0:00:34]} 8. O-O {[%emt 0:00:27]} Nc6 {[%emt 0:00:06]} 9. h3 {[%emt 0:02:43]} a5 {[%emt 0:13:43]} 10. Re1 {[%emt 0:12:59]} a4 {[%emt 0:13:11]} 11. a3 {[%emt 0:10:35]} Nxd4 {[%emt 0:13:04]} 12. Bxd4 {[%emt 0:00:22]} Bd7 {[%emt 0:00:25]} 13. Bf3 {[%emt 0:09:16]} Bc6 {[%emt 0:04:15]} 14. Qd3 {[%emt 0:07:39]} Rb8 {[%emt 0:05:14]} 15. Nd5 {[%emt 0:09:00]} e6 {[%emt 0:05:50]} 16. Nxf6+ {[%emt 0:14:21]} Bxf6 {[%emt 0:00:06]} 17. Rad1 {[%emt 0:01:14]} Qe7 {[%emt 0:04:03]} 18. Qc3 {[%emt 0:08:44]} Bxd4 {[%emt 0:02:17]} 19. Rxd4 {[%emt 0:00:28]} Rfd8 {[%emt 0:01:01]} 20. Red1 {[%emt 0:01:11]} Rd7 {[%emt 0:00:48]} 21. Qb4 {[%emt 0:07:26]} Rbd8 {[%emt 0:01:21]} 22. Be2 {[%emt 0:03:22]} Qg5 {[%emt 0:04:40]} 23. Bf3 {[%emt 0:07:07]} Qe5 {[%emt 0:03:01]} 24. R1d2 {[%emt 0:02:51]} Qc5 {[%emt 0:09:08]} 25. Be2 {[%emt 0:00:59]} Qe5 {[%emt 0:06:53]} 26. Bf3 {[%emt 0:00:12]} h6 {[%emt 0:01:23]} 27. Rd1 {[%emt 0:00:34]} Kh7 {[%emt 0:00:39]} 28. R1d2 {[%emt 0:00:27]} Kg8 {[%emt 0:02:30]} 29. Rd1 {[%emt 0:00:14]} Kh7 {[%emt 0:00:33]} 30. R1d2 {[%emt 0:00:18]} Kg8 {[%emt 0:01:07]} 31. Rd1 {[%emt 0:00:06]} Kh7 {[%emt 0:00:13]} 1/2-1/2

[Event "Polish Youth G18 Championship 2023"]
[Site "Jastrzebia Gora"]
[Date "2023.03.14"]
[Round "4.10"]
[White "Bychowska, Marta"]
[Black "Uliasz, Katarzyna"]
[Result "1/2-1/2"]
[ECO "E95"]
[WhiteElo "1388"]
[BlackElo "1670"]
[Annotator "NA RC COMBH"]
[PlyCount "74"]
[EventDate "2023.03.11"]
[EventType "swiss"]
[EventCountry "POL"]
[SourceTitle "playchess.com"]
[Source "ChessBase"]
[SourceQuality "1"]
[TimeControl "40/5400+30:1800+30"]

1. d4 {[%emt 0:00:03]} Nf6 {[%emt 0:00:16]} 2. c4 {[%emt 0:00:06]} g6 {[%emt 0:00:08]} 3. Nc3 {[%emt 0:00:05]} Bg7 {[%emt 0:00:03]} 4. e4 {[%emt 0:00:06]} d6 {[%emt 0:00:04]} 5. Nf3 {[%emt 0:00:08]} O-O {[%emt 0:00:08]} 6. Be2 {[%emt 0:00:10]} Nbd7 {[%emt 0:01:22]} 7. O-O {[%emt 0:00:12]} e5 {[%emt 0:00:07]} 8. Re1 {[%emt 0:01:33]} a5 {[%emt 0:06:04]} 9. d5 {[%emt 0:00:56]} Nc5 {[%emt 0:00:48]} 10. Qc2 {[%emt 0:00:37]} Nh5 {[%emt 0:03:15]} 11. Nd2 {[%emt 0:06:21]} Nf4 {[%emt 0:02:12]} 12. Nb3 {[%emt 0:03:02]} Nxe2+ {[%emt 0:03:57]} 13. Qxe2 {[%emt 0:01:11]} b6 {[%emt 0:00:35]} 14. Nxc5 {[%emt 0:00:51]} bxc5 {[%emt 0:00:05]} 15. a4 {[%emt 0:00:22]} f5 {[%emt 0:00:29]} 16. f3 {[%emt 0:00:28]} f4 {[%emt 0:00:43]} 17. Nb5 {[%emt 0:00:23]} h5 {[%emt 0:01:45]} 18. Bd2 {[%emt 0:04:22]} g5 {[%emt 0:11:31]} 19. h3 {[%emt 0:03:00]} Bf6 {[%emt 0:01:41]} 20. Rf1 {[%emt 0:10:08]} Rf7 {[%emt 0:01:42]} 21. Kf2 {[%emt 0:00:22]} g4 {[%emt 0:05:31]} 22. Ke1 {[%emt 0:08:43]} Bh4+ {[%emt 0:06:48]} 23. Kd1 {[%emt 0:00:08]} gxh3 {[%emt 0:01:42]} 24. gxh3 {[%emt 0:00:10]} Rg7 {[%emt 0:02:02]} 25. Qh2 {[%emt 0:03:25]} Bg3 {[%emt 0:03:40]} 26. Qg2 {[%emt 0:10:59]} Bd7 {[%emt 0:13:40]} 27. Kc2 {[%emt 0:03:11]} h4 {[%emt 0:03:12]} 28. Rh1 {[%emt 0:03:12]} Qc8 {[%emt 0:02:02]} 29. Rag1 {[%emt 0:01:55]} Rg6 {[%emt 0:02:10]} 30. b3 {[%emt 0:00:55]} Kh7 {[%emt 0:00:56]} 31. Qf1 {[%emt 0:00:51]} c6 {[%emt 0:01:03]} 32. dxc6 {[%emt 0:00:16]} Qxc6 {[%emt 0:03:14]} 33. Bc3 {[%emt 0:01:07]} Qb6 {[%emt 0:01:58]} 34. Bd2 {[%emt 0:00:54]} Bxb5 {[%emt 0:05:10]} 35. cxb5 {[%emt 0:04:02]} Ra7 {[%emt 0:01:42]} 36. Bc1 {[%emt 0:02:22]} Rd7 {[%emt 0:05:26]} 37. Qd3 {[%emt 0:04:59]} Rc7 {[%emt 0:05:00]} 1/2-1/2

[Event "Polish Youth G18 Championship 2023"]
[Site "Jastrzebia Gora"]
[Date "2023.03.14"]
[Round "4.11"]
[White "Lochina, Justyna"]
[Black "Bialek, Alicja"]
[Result "0-1"]
[ECO "B75"]
[WhiteElo "1645"]
[BlackElo "1576"]
[Annotator "NA RC COMBH"]
[PlyCount "80"]
[EventDate "2023.03.11"]
[EventType "swiss"]
[EventCountry "POL"]
[SourceTitle "playchess.com"]
[Source "ChessBase"]
[SourceQuality "1"]
[TimeControl "40/5400+30:1800+30"]

1. e4 {[%emt 0:00:02]} c5 {[%emt 0:00:02]} 2. Nf3 {[%emt 0:00:06]} d6 {[%emt 0:00:04]} 3. d4 {[%emt 0:00:06]} cxd4 {[%emt 0:00:04]} 4. Nxd4 {[%emt 0:00:08]} Nf6 {[%emt 0:00:06]} 5. Nc3 {[%emt 0:00:08]} g6 {[%emt 0:00:11]} 6. Be3 {[%emt 0:00:46]} Bg7 {[%emt 0:00:05]} 7. f3 {[%emt 0:01:33]} a6 {[%emt 0:00:18]} 8. Qd2 {[%emt 0:05:12]} h5 {[%emt 0:00:06]} 9. Bc4 {[%emt 0:02:54]} b5 {[%emt 0:05:03]} 10. Bb3 {[%emt 0:02:34]} Bb7 {[%emt 0:00:33]} 11. a4 {[%emt 0:04:13]} bxa4 {[%emt 0:31:01]} 12. Bxa4+ {[%emt 0:05:26]} Nbd7 {[%emt 0:00:25]} 13. O-O {[%emt 0:08:43]} Qc7 {[%emt 0:05:39]} 14. Rfd1 {[%emt 0:06:30]} O-O {[%emt 0:03:01]} 15. Kh1 {[%emt 0:06:27]} Kh7 {[%emt 0:04:21]} 16. Qf2 {[%emt 0:08:10]} Nc5 {[%emt 0:27:31]} 17. Nde2 {[%emt 0:12:50]} Nxa4 {[%emt 0:06:35]} 18. Rxa4 {[%emt 0:02:30]} Bc6 {[%emt 0:00:48]} 19. Ra3 {[%emt 0:02:53]} Rfb8 {[%emt 0:10:40]} 20. b3 {[%emt 0:03:40]} Rc8 {[%emt 0:00:45]} 21. Ra2 {[%emt 0:10:51]} Qb7 {[%emt 0:02:02]} 22. Bd4 {[%emt 0:02:02]} e5 {[%emt 0:01:19]} 23. Be3 {[%emt 0:01:35]} d5 {[%emt 0:00:30]} 24. exd5 {[%emt 0:03:42]} Nxd5 {[%emt 0:00:21]} 25. Nxd5 {[%emt 0:04:18]} Bxd5 26. Nc1 {[%emt 0:00:54]} Rc3 {[%emt 0:01:00]} 27. Qd2 {[%emt 0:01:27]} Bxf3 {[%emt 0:00:29]} 28. Qxc3 {[%emt 0:01:50]} Bxd1 {[%emt 0:00:48]} 29. Qd2 {[%emt 0:00:53]} Bg4 {[%emt 0:00:14]} 30. h3 {[%emt 0:01:17]} Bxh3 {[%emt 0:00:20]} 31. Ra4 {[%emt 0:01:13]} Rd8 {[%emt 0:00:30]} 32. Qf2 {[%emt 0:00:52]} Bf5 {[%emt 0:00:42]} 33. Qe2 {[%emt 0:00:30]} Bc8 {[%emt 0:00:46]} 34. Nd3 {[%emt 0:00:18]} Qe7 {[%emt 0:00:30]} 35. Nc5 {[%emt 0:00:33]} Bg4 {[%emt 0:00:33]} 36. Qf2 {[%emt 0:00:25]} Rd1+ {[%emt 0:00:26]} 37. Kh2 {[%emt 0:00:06]} f5 {[%emt 0:00:36]} 38. Rxa6 {[%emt 0:01:04]} e4 {[%emt 0:00:21]} 39. Re6 {[%emt 0:00:45]} Be5+ {[%emt 0:00:23]} 40. g3 {[%emt 0:00:00]} Qh4+ {[%emt 0:00:00]} 0-1

[Event "Polish Youth G18 Championship 2023"]
[Site "Jastrzebia Gora"]
[Date "2023.03.14"]
[Round "4.12"]
[White "Bartoszek, Julia"]
[Black "Bugaj, Hanna"]
[Result "0-1"]
[ECO "B00"]
[WhiteElo "1344"]
[BlackElo "1639"]
[Annotator "NA RC COMBH"]
[PlyCount "122"]
[EventDate "2023.03.11"]
[EventType "swiss"]
[EventCountry "POL"]
[SourceTitle "playchess.com"]
[Source "ChessBase"]
[SourceQuality "1"]
[TimeControl "40/5400+30:1800+30"]

1. e4 {[%emt 0:00:04]} Nc6 {[%emt 0:00:08]} 2. d4 {[%emt 0:00:24]} d5 {[%emt 0:00:10]} 3. e5 {[%emt 0:00:46]} f6 {[%emt 0:00:49]} 4. exf6 {[%emt 0:02:24]} Nxf6 {[%emt 0:02:57]} 5. Nf3 {[%emt 0:03:05]} Bg4 {[%emt 0:01:18]} 6. Be2 {[%emt 0:02:26]} Bxf3 {[%emt 0:06:40]} 7. Bxf3 {[%emt 0:01:36]} e5 {[%emt 0:00:26]} 8. dxe5 {[%emt 0:00:53]} Nxe5 {[%emt 0:00:21]} 9. Qe2 {[%emt 0:05:24]} Qe7 {[%emt 0:00:31]} 10. O-O {[%emt 0:01:07]} Nxf3+ {[%emt 0:03:55]} 11. Qxf3 {[%emt 0:00:10]} O-O-O {[%emt 0:00:50]} 12. Bg5 {[%emt 0:05:16]} Qe5 {[%emt 0:13:32]} 13. Bxf6 {[%emt 0:01:39]} gxf6 {[%emt 0:00:16]} 14. c3 {[%emt 0:02:13]} Bd6 {[%emt 0:06:15]} 15. g3 {[%emt 0:01:27]} h5 {[%emt 0:03:28]} 16. h4 {[%emt 0:02:56]} f5 {[%emt 0:12:21]} 17. Nd2 {[%emt 0:02:56]} f4 {[%emt 0:04:41]} 18. Rae1 {[%emt 0:02:34]} Qg7 {[%emt 0:02:37]} 19. Kh2 {[%emt 0:01:57]} Rdf8 {[%emt 0:03:18]} 20. Qg2 {[%emt 0:03:15]} Rhg8 {[%emt 0:06:08]} 21. Rg1 {[%emt 0:03:38]} Qg4 {[%emt 0:01:08]} 22. Ref1 {[%emt 0:06:41]} fxg3+ {[%emt 0:03:26]} 23. fxg3 {[%emt 0:00:08]} Qxh4+ {[%emt 0:00:38]} 24. Qh3+ {[%emt 0:00:17]} Qxh3+ {[%emt 0:00:07]} 25. Kxh3 {[%emt 0:00:05]} Rxf1 {[%emt 0:04:01]} 26. Nxf1 {[%emt 0:00:07]} Kd7 {[%emt 0:01:18]} 27. Rg2 {[%emt 0:05:32]} c5 {[%emt 0:04:44]} 28. Rf2 {[%emt 0:04:23]} Ke6 {[%emt 0:00:55]} 29. Re2+ {[%emt 0:02:12]} Be5 {[%emt 0:02:32]} 30. Kh4 {[%emt 0:01:31]} Rh8 {[%emt 0:03:02]} 31. Nd2 {[%emt 0:01:09]} Kd6 {[%emt 0:02:14]} 32. Rf2 {[%emt 0:03:12]} Rg8 {[%emt 0:00:39]} 33. Rf3 {[%emt 0:01:34]} Rg4+ {[%emt 0:00:28]} 34. Kh3 {[%emt 0:00:39]} b5 {[%emt 0:01:22]} 35. Nf1 {[%emt 0:02:05]} d4 {[%emt 0:00:42]} 36. cxd4 {[%emt 0:02:24]} cxd4 {[%emt 0:00:39]} 37. Rf5 {[%emt 0:00:47]} d3 {[%emt 0:06:02]} 38. Rf2 {[%emt 0:03:23]} Kc5 {[%emt 0:01:14]} 39. Rf5 {[%emt 0:01:32]} Kd6 {[%emt 0:02:09]} 40. Rf3 {[%emt 0:00:00]} Rd4 {[%emt 0:00:00]} 41. Nd2 {[%emt 0:03:17]} a5 {[%emt 0:13:00]} 42. Rf8 {[%emt 0:04:14]} Ra4 {[%emt 0:11:47]} 43. Rd8+ {[%emt 0:02:11]} Kc6 {[%emt 0:00:27]} 44. b3 {[%emt 0:01:30]} Rxa2 {[%emt 0:02:45]} 45. Rxd3 {[%emt 0:00:07]} a4 {[%emt 0:01:37]} 46. bxa4 {[%emt 0:01:21]} bxa4 {[%emt 0:00:03]} 47. Kh4 {[%emt 0:01:59]} Rc2 {[%emt 0:01:59]} 48. Kxh5 {[%emt 0:08:35]} Bxg3 {[%emt 0:00:34]} 49. Rd8 {[%emt 0:20:24]} Kb5 {[%emt 0:01:30]} 50. Nb1 {[%emt 0:01:38]} Rc5+ {[%emt 0:01:17]} 51. Kg4 {[%emt 0:00:33]} Bc7 {[%emt 0:02:04]} 52. Rd3 {[%emt 0:00:54]} Ba5 {[%emt 0:00:26]} 53. Kf3 {[%emt 0:01:03]} Kc4 {[%emt 0:00:47]} 54. Ra3 {[%emt 0:01:34]} Kb4 {[%emt 0:00:08]} 55. Rd3 {[%emt 0:01:09]} Rc1 {[%emt 0:00:21]} 56. Na3 {[%emt 0:01:01]} Rc3 {[%emt 0:00:35]} 57. Rxc3 {[%emt 0:00:43]} Kxc3 {[%emt 0:00:02]} 58. Ke2 {[%emt 0:01:42]} Bb4 {[%emt 0:00:20]} 59. Nb5+ {[%emt 0:00:47]} Kc4 {[%emt 0:00:09]} 60. Na7 {[%emt 0:00:52]} a3 {[%emt 0:00:13]} 61. Kd1 {[%emt 0:00:11]} a2 {[%emt 0:00:07]} 0-1

[Event "Polish Youth G18 Championship 2023"]
[Site "Jastrzebia Gora"]
[Date "2023.03.14"]
[Round "4.13"]
[White "Krzyzosiak, Anna"]
[Black "Kaznowska, Kinga"]
[Result "1-0"]
[ECO "C42"]
[WhiteElo "1503"]
[BlackElo "1352"]
[Annotator "NA RC COMBH"]
[PlyCount "65"]
[EventDate "2023.03.11"]
[EventType "swiss"]
[EventCountry "POL"]
[SourceTitle "playchess.com"]
[Source "ChessBase"]
[SourceQuality "1"]
[TimeControl "40/5400+30:1800+30"]

1. e4 {[%emt 0:00:02]} e5 {[%emt 0:00:04]} 2. Nf3 {[%emt 0:00:04]} Nf6 {[%emt 0:00:04]} 3. Nxe5 {[%emt 0:00:17]} d6 {[%emt 0:00:07]} 4. Nf3 {[%emt 0:00:12]} Nxe4 {[%emt 0:00:10]} 5. d4 {[%emt 0:00:53]} Nc6 {[%emt 0:00:53]} 6. d5 {[%emt 0:18:10]} Ne5 {[%emt 0:00:59]} 7. Bb5+ {[%emt 0:08:22]} Bd7 {[%emt 0:01:20]} 8. Qe2 {[%emt 0:09:52]} Qe7 {[%emt 0:06:30]} 9. Nxe5 {[%emt 0:03:21]} Qxe5 {[%emt 0:00:45]} 10. Bxd7+ {[%emt 0:00:28]} Kxd7 {[%emt 0:00:08]} 11. Qb5+ {[%emt 0:03:23]} Kd8 {[%emt 0:03:50]} 12. O-O {[%emt 0:02:49]} Nc5 {[%emt 0:03:38]} 13. Nc3 {[%emt 0:06:37]} Be7 {[%emt 0:02:30]} 14. Be3 {[%emt 0:05:18]} a6 {[%emt 0:00:21]} 15. Qb4 {[%emt 0:01:03]} Kc8 {[%emt 0:01:43]} 16. Rfe1 {[%emt 0:08:10]} a5 {[%emt 0:14:07]} 17. Qb5 {[%emt 0:10:43]} Qf6 {[%emt 0:06:22]} 18. Rad1 {[%emt 0:09:28]} Nd7 {[%emt 0:08:10]} 19. Bd4 {[%emt 0:05:22]} Ne5 {[%emt 0:02:25]} 20. Re3 {[%emt 0:02:33]} Bd8 {[%emt 0:05:20]} 21. Ne4 {[%emt 0:02:11]} Qf5 {[%emt 0:14:53]} 22. Bxe5 {[%emt 0:00:55]} dxe5 {[%emt 0:00:23]} 23. d6 {[%emt 0:00:40]} c6 {[%emt 0:00:23]} 24. Qb3 {[%emt 0:00:38]} b6 {[%emt 0:04:27]} 25. d7+ {[%emt 0:00:30]} Kc7 {[%emt 0:00:27]} 26. Nd6 {[%emt 0:00:42]} Qh5 {[%emt 0:00:28]} 27. f3 {[%emt 0:00:43]} Rf8 {[%emt 0:03:01]} 28. Qc3 {[%emt 0:00:21]} Bf6 {[%emt 0:03:54]} 29. Ne8+ {[%emt 0:00:36]} Kb7 {[%emt 0:01:21]} 30. Rd6 {[%emt 0:00:23]} c5 {[%emt 0:00:43]} 31. Nxf6 {[%emt 0:00:22]} gxf6 {[%emt 0:00:41]} 32. Qb3 {[%emt 0:00:07]} Kc7 {[%emt 0:08:10]} 33. Qxb6# {[%emt 0:00:07]} 1-0